[Event "10th Norway Chess Blitz 2022"]
[Site "Stavanger"]
[Date "2022.05.30"]
[Round "2.2"]
[White "Tari, Aryan"]
[Black "Mamedyarov, Shakhriyar"]
[Result "1-0"]
[ECO "B06"]
[WhiteElo "2654"]
[BlackElo "2770"]
[Annotator "TA"]
[PlyCount "51"]
[EventDate "2022.05.30"]
[EventType "tourn"]
[EventCountry "NOR"]
[SourceTitle "playchess.com"]
[Source "ChessBase"]
[SourceQuality "1"]
[TimeControl "180+2"]

{[%evp 16,51,6,3,4,1,16,12,19,0,18,0,36,35,108,118,112,105,88,55,70,70,143,52,266,268,480,475,1148,1153,29987,29988,29988,29989,29990,29991,29991,29992]} 1. e4 {[%emt 0:00:01]} e5 {[%emt 0:00:01]} 2. Nf3 {[%emt 0:00:02]} d6 {[%emt 0:00:00]} 3. d4 {[%emt 0:00:02]} exd4 {[%emt 0:00:01]} 4. Nxd4 {[%emt 0:00:01]} Nf6 {[%emt 0:00:01]} 5. Nc3 {[%emt 0:00:02]} g6 {[%emt 0:00:01]} 6. g3 {[%emt 0:00:17]} Bg7 {[%emt 0:00:02]} 7. Bg2 {[%emt 0:00:01]} O-O {[%emt 0:00:05]} 8. O-O {[%emt 0:00:03]} Re8 {[%emt 0:00:01]} 9. h3 {[%emt 0:00:04]} Nc6 {[%emt 0:00:12] Threatens to win with ...Nxd4. B06: Modern Defence.} 10. Nde2 {[%emt 0:00:04]} Rb8 {[%emt 0:00:10]} 11. a4 {[%emt 0:00:02]} a6 {[%emt 0:00:01] The position is equal.} 12. f4 {[%emt 0:00:23]} Bd7 {[%emt 0:00:04]} 13. a5 {[%emt 0:00:04] [#]} h5 $146 {[%emt 0:00:21]} ({Predecessor:} 13... Na7 14. Re1 Nb5 15. Nxb5 axb5 16. Nc3 h5 17. e5 dxe5 18. fxe5 Nh7 19. Bf4 Qc8 {0-1 (44) Bernardi,R (2140)-Marholev,D (2366) Bratto 2008}) 14. f5 {[%emt 0:00:14]} gxf5 {[%emt 0:00:11] [#]} (14... Qe7 $14) 15. Bg5 $1 $16 {[%emt 0:00:23]} Qc8 {[%emt 0:00:04][%cal Rf6e4]} (15... fxe4 16. Nd5 (16. Nxe4 Rxe4 17. Bxe4 Bxh3 $14) 16... Re6 {[#]} 17. Bxe4 $1 {[%mdl 512]} Nxd5 18. Bxd8 $16) 16. Bxf6 {[%emt 0:00:07]} ({Don't take} 16. exf5 Re5 $14) 16... Bxf6 {[%emt 0:00:01]} 17. Nf4 {[%emt 0:00:02]} Bxc3 {[%emt 0:00:11]} 18. bxc3 {[%emt 0:00:03]} Re5 {[%emt 0:00:01]} ({Black should try} 18... fxe4 $14 19. Nxh5 Re5) 19. Nxh5 {[%emt 0:00:34] White is more active.} (19. Nd3 $16) 19... Qd8 $2 {[%emt 0:00:03] Black cannot hold the game after this.} (19... fxe4 $14 20. Nf6+ Kf8) 20. Qd2 {[%emt 0:00:02]} Kh7 {[%emt 0:00:44] Prevents Qh6+.} (20... f4 {might work better.}) 21. exf5 $18 {[%emt 0:00:15] Strongly threatening Ra4.} f6 {[%emt 0:00:02]} (21... Qe7 $142 22. Ra4 Re2 23. Nf6+ Qxf6 24. Qxe2 Kg7) 22. Ra4 {[%emt 0:00:07] Rh4 would kill now.} Qe7 {[%emt 0:00:28]} 23. Rh4 {[%emt 0:00:05] White mates.} Bxf5 {[%emt 0:00:30]} 24. Nxf6+ {[%emt 0:00:07]} Kg7 {[%emt 0:00:01]} 25. Qg5+ {[%emt 0:00:07]} Kf7 {[%emt 0:00:03]} 26. Rxf5 {[%emt 0:00:08] Weighted Error Value: White=0.08 (flawless) /Black=0.72} 1-0

[Event "10th Norway Chess Blitz 2022"]
[Site "Stavanger"]
[Date "2022.05.30"]
[Round "2.3"]
[White "So, Wesley"]
[Black "Anand, Viswanathan"]
[Result "1/2-1/2"]
[ECO "C54"]
[WhiteElo "2766"]
[BlackElo "2751"]
[Annotator "TA"]
[PlyCount "82"]
[EventDate "2022.05.30"]
[EventType "tourn"]
[EventCountry "NOR"]
[SourceTitle "playchess.com"]
[Source "ChessBase"]
[SourceQuality "1"]
[TimeControl "180+2"]

{[%evp 10,82,22,13,22,0,27,22,21,3,12,4,24,21,28,7,18,18,19,16,16,14,33,-14,-8,-3,20,0,0,-2,0,0,-10,-6,0,0,0,0,0,0,0,0,0,0,0,0,0,0,-7,-15,-18,-22,-20,-43,0,-8,-12,-10,-8,-28,0,-49,-8,-8,-4,-28,0,0,0,0,0,-2,0,0,0]} 1. e4 {[%emt 0:00:02]} e5 {[%emt 0:00:01]} 2. Nf3 {[%emt 0:00:01]} Nc6 {[%emt 0:00:01]} 3. Bc4 {[%emt 0:00:01]} Bc5 {[%emt 0:00:02]} 4. c3 {[%emt 0:00:02]} Nf6 {[%emt 0:00:01]} 5. d3 {[%emt 0:00:01]} O-O {[%emt 0:00:04]} 6. Bg5 {[%emt 0:00:07][%cal Bc1g5,Bg5h4,Bh4g3][%mdl 32]} Be7 {[%emt 0:00:04] C54: Giuoco Piano: 4 c3 Nf6, main lines with 5 d4 and 5 d3.} 7. Nbd2 {[%emt 0:00:20]} d6 {[%emt 0:00:08]} 8. a4 {[%emt 0:00:03]} h6 {[%emt 0:00:10]} 9. Bh4 {[%emt 0:00:02]} Nh5 {[%emt 0:00:02]} 10. Bg3 {[%emt 0:00:07][%cal Of3e5]} g6 {[%emt 0:00:01] [#]} 11. b4 $146 {[%emt 0:00:12]} ({Predecessor:} 11. h3 Nxg3 12. fxg3 Kg7 13. O-O f5 14. Qe2 Bf6 15. Rf2 Qe7 16. Raf1 Be6 17. Nh2 {½-½ (47) Harikrishna,P (2733)-Inarkiev,E (2693) Germany 2018}) 11... Bf6 {[%emt 0:00:08]} 12. O-O {[%emt 0:00:07]} Qe7 {[%emt 0:00:11]} 13. Re1 {[%emt 0:00:03]} Nd8 {[%emt 0:00:03]} 14. d4 {[%emt 0:00:07]} Nxg3 {[%emt 0:00:04]} 15. hxg3 {[%emt 0:00:01]} Bg4 {[%emt 0:00:02]} 16. Be2 {[%emt 0:00:12]} (16. d5 $14) 16... Bxf3 {[%emt 0:00:10]} 17. Nxf3 {[%emt 0:00:02]} Ne6 {[%emt 0:00:04]} 18. b5 {[%emt 0:00:04]} c6 {[%emt 0:00:05]} 19. Rb1 {[%emt 0:00:13]} cxb5 {[%emt 0:00:09]} 20. Rxb5 {[%emt 0:00:07]} Rac8 {[%emt 0:00:01] Inhibits Bc4.} 21. Qd2 {[%emt 0:00:03]} Ng5 {[%emt 0:00:03]} 22. Nxg5 {[%emt 0:00:04]} Bxg5 {[%emt 0:00:10]} 23. Qd3 {[%emt 0:00:03]} Rc7 {[%emt 0:00:06]} 24. a5 {[%emt 0:00:08]} Rfc8 {[%emt 0:00:02]} 25. Rb3 {[%emt 0:00:01]} h5 {[%emt 0:00:04]} 26. Reb1 {[%emt 0:00:03]} exd4 {[%emt 0:00:06]} 27. cxd4 {[%emt 0:00:02]} Rc1+ {[%emt 0:00:01]} 28. Bf1 {[%emt 0:00:16]} Rxb1 {[%emt 0:00:03]} 29. Qxb1 {[%emt 0:00:03]} Rc1 {[%emt 0:00:08]} 30. Qd3 {[%emt 0:00:01]} Qc7 {[%emt 0:00:02]} 31. f4 {[%emt 0:00:23]} Bf6 {[%emt 0:00:06]} 32. e5 {[%emt 0:00:05]} dxe5 {[%emt 0:00:02]} 33. dxe5 {[%emt 0:00:01]} Be7 {[%emt 0:00:03] [#] Threatens to win with ...Qc5+.} 34. Kh2 {[%emt 0:00:02]} Kg7 {[%emt 0:00:03]} (34... h4 $5 {[%cal Rh4g3]} 35. Qb5 hxg3+ 36. Rxg3 Bf8 $15) 35. Qf3 {[%emt 0:00:03]} (35. Rb1 $11) 35... b6 {[%emt 0:00:08]} (35... Qxa5 $5 {[%cal Ra5a1]} 36. Qxb7 (36. Rb5 $2 Qa1 $19) 36... Bc5 $15) 36. axb6 {[%emt 0:00:03]} axb6 {[%emt 0:00:01]} 37. Qd3 {[%emt 0:00:05]} Re1 {[%emt 0:00:07] [#] ...Qc1 is the strong threat.} (37... Bc5 $5 {[%cal Rc7c8]}) 38. Rb1 {[%emt 0:00:01] Prevents Qc1. The position is equal.} Rxb1 {[%emt 0:00:02]} 39. Qxb1 {[%emt 0:00:01]} Qc5 {[%emt 0:00:04]} 40. Qe4 {[%emt 0:00:23]} Qf2 {[%emt 0:00:06] ( -> ...Bc5)} 41. Qe2 {[%emt 0:00:03]} Qxe2 {[%emt 0:00:02] A balanced but interesting game.  Weighted Error Value: White=0.07 (flawless) /Black=0.07 (flawless)} 1/2-1/2

[Event "10th Norway Chess Blitz 2022"]
[Site "Stavanger"]
[Date "2022.05.30"]
[Round "2.4"]
[White "Topalov, Veselin"]
[Black "Wang, Hao"]
[Result "1-0"]
[ECO "E60"]
[WhiteElo "2730"]
[BlackElo "2744"]
[Annotator "TA"]
[PlyCount "75"]
[EventDate "2022.05.30"]
[EventType "tourn"]
[EventCountry "NOR"]
[SourceTitle "playchess.com"]
[Source "ChessBase"]
[SourceQuality "1"]
[TimeControl "180+2"]

{[%evp 18,75,32,33,39,37,45,39,39,43,71,37,36,37,39,40,44,22,29,25,52,47,88,51,48,31,40,17,13,13,87,0,99,-594,130,135,141,104,122,102,113,109,136,133,263,253,231,186,614,478,830,823,818,792,1101,967,29980,29981,29980,29981]} 1. c4 {[%emt 0:00:03]} e5 {[%emt 0:00:02]} 2. b3 {[%emt 0:00:02]} Nc6 {[%emt 0:00:05]} 3. Bb2 {[%emt 0:00:01]} Nf6 {[%emt 0:00:02]} 4. e3 {[%emt 0:00:09]} g6 {[%emt 0:00:05]} 5. Nf3 {[%emt 0:00:05]} d6 {[%emt 0:00:05]} 6. d4 {[%emt 0:00:06]} Bg7 {[%emt 0:00:04]} 7. dxe5 {[%emt 0:00:07]} Ng4 {[%emt 0:00:06]} 8. Nc3 {[%emt 0:00:03]} Ngxe5 {[%emt 0:00:09]} 9. Be2 {[%emt 0:00:01]} O-O {[%emt 0:00:05]} 10. O-O {[%emt 0:00:02]} Re8 {[%emt 0:00:16] E60: King's Indian: Unusual lines and Fianchetto Variation without Nc3.} 11. Qd2 {[%emt 0:00:09]} Nxf3+ {[%emt 0:00:25]} 12. Bxf3 {[%emt 0:00:01]} Ne5 {[%emt 0:00:02] White is slightly better.} 13. Be2 {[%emt 0:00:02]} Be6 {[%emt 0:00:16]} 14. Rad1 {[%emt 0:00:41]} (14. f4 $5 {[%cal Rf4e5]} Nd7 15. e4 $14) 14... Nd7 {[%emt 0:00:10]} 15. Nd5 {[%emt 0:00:10]} Bxb2 {[%emt 0:00:03]} 16. Qxb2 {[%emt 0:00:01] [#]} a5 $146 {[%emt 0:00:05]} ({Predecessor:} 16... Bxd5 17. Rxd5 Qf6 18. Qc2 b6 19. Rfd1 a5 20. R5d4 Ne5 21. Rf4 Qe7 22. a3 f5 23. Qd2 Kh8 {½-½ (47) Laenen,D-Mora,E (2217) ICCF email 2009}) 17. a3 {[%emt 0:00:11]} Bxd5 {[%emt 0:00:42]} 18. cxd5 {[%emt 0:00:08]} Qf6 {[%emt 0:00:09]} 19. Qc2 {[%emt 0:00:14]} Nc5 {[%emt 0:00:03]} 20. Rd4 {[%emt 0:00:06]} Re7 {[%emt 0:00:20]} 21. Bb5 {[%emt 0:00:07]} Qe5 {[%emt 0:00:06]} 22. b4 {[%emt 0:00:18]} axb4 {[%emt 0:00:02]} 23. axb4 {[%emt 0:00:01]} Na6 {[%emt 0:00:15]} (23... Ne6 $11 24. dxe6 Qxb5) 24. h3 {[%emt 0:00:10]} (24. Bd3 $16) 24... Kg7 {[%emt 0:00:01]} (24... c5 $11 {keeps the balance.} 25. bxc5 Nxc5) 25. Ra1 $2 {[%emt 0:00:07][%mdl 8192] [#]} (25. Bd3 $16) 25... h5 $2 {[%emt 0:00:01]} (25... Nxb4 $1 $19 {[%mdl 512]} 26. Rxb4 Rxa1+ 27. Bf1 Qxd5 28. Qc3+ Qe5) 26. Qc4 $16 {[%emt 0:00:18] White is more active.} Qf6 {[%emt 0:00:06]} 27. Bxa6 {[%emt 0:00:04]} bxa6 {[%emt 0:00:01]} 28. Rxa6 {[%emt 0:00:02]} (28. Ra5 {keeps more tension.} Qf5 29. Qc3 Kg8 30. Rc4) 28... Rxa6 {[%emt 0:00:03]} 29. Qxa6 {[%emt 0:00:01][%mdl 4096] Endgame KQR-KQR} Re5 {[%emt 0:00:02]} 30. Qc4 {[%emt 0:00:03]} Rf5 {[%emt 0:00:03]} (30... Re7 $16 31. Qc2 Qg5) 31. f4 $18 {[%emt 0:00:05] [#] And now g4 would win.} ({Not} 31. Qxc7 Rxf2 32. Qc1 (32. Rf4 Rxf4 33. exf4 Qd4+ 34. Kh1 Qxb4 $17) 32... Ra2 $11) 31... Qe7 {[%emt 0:00:02]} 32. Qc3 {[%emt 0:00:01] aiming for g4.} Kh7 $2 {[%emt 0:00:02]} (32... h4 33. Rd1+ Kh7) 33. b5 {[%emt 0:00:09][%cal Bb4b5,Bb5b6][%mdl 32] Hoping for g4.} h4 {[%emt 0:00:03]} (33... Qe8 $142 34. g4 Rf6) 34. Rc4 {[%emt 0:00:04]} Rxd5 {[%emt 0:00:03]} 35. Rxc7 {[%emt 0:00:01]} Qe6 {[%emt 0:00:02]} 36. b6 {[%emt 0:00:02] White wants to mate with b7.} Rd1+ {[%emt 0:00:02]} 37. Kh2 {[%emt 0:00:01]} Rb1 {[%emt 0:00:02]} 38. Rc8 {[%emt 0:00:01] Quite a comeback for White.  Weighted Error Value: White=0.55/Black=0.87} 1-0

[Event "10th Norway Chess Blitz 2022"]
[Site "Stavanger"]
[Date "2022.05.30"]
[Round "2.5"]
[White "Radjabov, Teimour"]
[Black "Giri, Anish"]
[Result "1-0"]
[ECO "D00"]
[WhiteElo "2753"]
[BlackElo "2761"]
[Annotator "TA"]
[PlyCount "71"]
[EventDate "2022.05.30"]
[EventType "tourn"]
[EventCountry "NOR"]
[SourceTitle "playchess.com"]
[Source "ChessBase"]
[SourceQuality "1"]
[TimeControl "180+2"]

{[%evp 9,71,8,0,-47,-8,-13,-7,-13,14,0,23,20,33,23,39,24,28,24,30,25,22,27,47,29,37,41,32,8,41,39,45,51,49,0,0,0,266,258,269,243,280,255,351,338,330,341,435,427,435,416,603,589,620,619,613,598,651,605,6503,2832,29983,5697,29991,29991]} 1. Nf3 {[%emt 0:00:01]} Nf6 {[%emt 0:00:03]} 2. d4 {[%emt 0:00:01]} g6 {[%emt 0:00:01]} 3. Nc3 {[%emt 0:00:03]} d5 {[%emt 0:00:01]} 4. Bf4 {[%emt 0:00:01]} Bg7 {[%emt 0:00:02]} 5. e3 {[%emt 0:00:01]} O-O {[%emt 0:00:02]} 6. b4 {[%emt 0:00:01] [#] D00: 1 d4 d5: Unusual lines.} (6. Be2 $11) 6... a5 $146 {[%emt 0:00:12]} ({Predecessor:} 6... Nh5 7. Bg3 b6 8. Rb1 Bb7 9. Bd3 Nd7 10. Ne2 e5 11. Bxe5 Bxe5 12. dxe5 Qe7 13. Ned4 Nxe5 14. Nxe5 Qxe5 {½-½ (32) Pereyra Puebla,M-Preo,N ICCF corr 1973}) 7. b5 {[%emt 0:00:01]} a4 {[%emt 0:00:03][%cal Oc7c5]} 8. Bd3 {[%emt 0:00:06] The position is equal.} Nbd7 {[%emt 0:00:00]} 9. h3 {[%emt 0:00:03]} Nb6 {[%emt 0:00:00]} 10. O-O {[%emt 0:00:04]} Bd7 {[%emt 0:00:16]} 11. Rb1 {[%emt 0:00:06]} Qc8 {[%emt 0:00:12]} 12. Bh2 {[%emt 0:00:04]} Re8 {[%emt 0:00:10]} 13. Ne5 {[%emt 0:00:04]} Bf5 {[%emt 0:00:03]} 14. Qf3 {[%emt 0:00:04]} Qe6 {[%emt 0:00:24][%cal Of6e4]} 15. g4 {[%emt 0:00:15]} Bxd3 {[%emt 0:00:02]} 16. cxd3 {[%emt 0:00:01]} Nfd7 {[%emt 0:00:09]} 17. Nxd7 {[%emt 0:00:13]} Qxd7 {[%emt 0:00:01]} 18. Rfc1 {[%emt 0:00:01][%cal Bf1c1,Bc1c7,Bc7b7][%mdl 32]} Rec8 {[%emt 0:00:07]} 19. Kg2 {[%emt 0:00:02]} c5 {[%emt 0:00:19]} 20. bxc6 $1 {[%emt 0:00:24]} Rxc6 {[%emt 0:00:02]} 21. Rxb6 {[%emt 0:00:09]} Rxb6 $11 {[%emt 0:00:00]} 22. Nxd5 {[%emt 0:00:02][%cal Bc3d5,Bd5c7,Bc7e6,Be6f4][%mdl 32]} Re6 {[%emt 0:00:13][%mdl 8192]} (22... Rb5 $1 $11 23. Rc5 Rxc5 24. dxc5 Rd8) 23. Rc7 $18 {[%emt 0:00:07]} Qd8 {[%emt 0:00:05]} 24. Rxb7 {[%emt 0:00:01][%cal Od5e7] [#] Black must now prevent Nxe7+!} Rc8 {[%emt 0:00:03]} 25. g5 {[%emt 0:00:22]} Bf8 {[%emt 0:00:03]} 26. Nc7 {[%emt 0:00:06]} Rd6 {[%emt 0:00:35]} 27. Bxd6 {[%emt 0:00:02]} exd6 {[%emt 0:00:05] [#]} 28. Ne6 {[%emt 0:00:03][%mdl 512]} Qe8 {[%emt 0:00:01]} 29. Nf4 {[%emt 0:00:08]} Be7 {[%emt 0:00:14]} (29... Qd8 $142 30. h4 Rc7) 30. h4 {[%emt 0:00:05]} Bd8 {[%emt 0:00:01]} 31. Nd5 {[%emt 0:00:09]} Qe6 {[%emt 0:00:05]} 32. Ra7 {[%emt 0:00:20]} h6 {[%emt 0:00:05]} 33. Nf4 {[%emt 0:00:01]} Qxa2 {[%emt 0:00:04]} 34. d5 {[%emt 0:00:02]} (34. Nd5 $142 Qxd5 35. Qxd5 Rc7 36. Rxc7 Bxc7 37. Qa8+ Kg7 38. gxh6+ Kf6 39. h7) 34... Bc7 {[%emt 0:00:13]} 35. gxh6 {[%emt 0:00:05] Qg4 would kill now.} Qb3 {[%emt 0:00:11]} 36. h5 {[%emt 0:00:20] Weighted Error Value: White=0.08 (flawless) /Black=0.76} 1-0

[Event "10th Norway Chess Blitz 2022"]
[Site "Stavanger"]
[Date "2022.05.30"]
[Round "3.1"]
[White "Giri, Anish"]
[Black "Carlsen, Magnus"]
[Result "1/2-1/2"]
[ECO "E94"]
[WhiteElo "2761"]
[BlackElo "2864"]
[Annotator "TA"]
[PlyCount "69"]
[EventDate "2022.05.30"]
[EventType "tourn"]
[EventCountry "NOR"]
[SourceTitle "playchess.com"]
[Source "ChessBase"]
[SourceQuality "1"]
[TimeControl "180+2"]

{[%evp 18,69,78,45,55,49,49,50,62,47,45,48,50,28,56,45,48,51,66,49,75,37,45,30,40,47,37,7,8,7,19,0,0,-14,-14,-12,0,-279,-307,-293,-134,-134,-137,-398,0,0,0,0,0,0,0,0,0,0]} 1. Nf3 {[%emt 0:00:01]} Nf6 {[%emt 0:00:03]} 2. c4 {[%emt 0:00:00]} g6 {[%emt 0:00:03]} 3. Nc3 {[%emt 0:00:01]} Bg7 {[%emt 0:00:01]} 4. e4 {[%emt 0:00:01]} d6 {[%emt 0:00:01]} 5. d4 {[%emt 0:00:01]} O-O {[%emt 0:00:03]} 6. Be2 {[%emt 0:00:01]} Nbd7 {[%emt 0:00:04]} 7. O-O {[%emt 0:00:02]} e5 {[%emt 0:00:01]} 8. Be3 {[%emt 0:00:02]} Qe7 {[%emt 0:00:05]} 9. Qc2 {[%emt 0:00:05]} c6 {[%emt 0:00:08]} 10. Rad1 $1 {[%emt 0:00:11] 10.Rad1 scores better than 10.d5.} exd4 {[%emt 0:00:20] E94: King's Indian: Classical: 6 Be2 e5 7 0-0: Various Black 7th moves.} 11. Nxd4 {[%emt 0:00:15]} ({Don't play} 11. Bxd4 Re8 $11) 11... a6 {[%emt 0:00:02]} 12. Rfe1 {[%emt 0:00:17]} Re8 {[%emt 0:00:03][%cal Rf6e4] White is slightly better.} 13. Bg5 {[%emt 0:00:20] White is much more active.} Nc5 {[%emt 0:00:07] [#]} 14. f3 $146 {[%emt 0:00:30]} ({Predecessor:} 14. Bf1 Qc7 15. Bf4 Nh5 16. Be3 Be5 17. g3 Ne6 18. Nb3 b6 19. f4 Bg7 20. Qd2 {½-½ (48) Khismatullin,D (2609)-Tekeyev,Z (2350) Sochi 2016}) 14... Ne6 {[%emt 0:00:02]} 15. Be3 {[%emt 0:00:08]} Nh5 {[%emt 0:00:11]} 16. Bf1 {[%emt 0:00:07]} Be5 {[%emt 0:00:10]} 17. g3 {[%emt 0:00:28]} Nxd4 {[%emt 0:00:14]} 18. Bxd4 {[%emt 0:00:01]} b5 {[%emt 0:00:05]} 19. Qd2 {[%emt 0:00:09]} Be6 {[%emt 0:00:09]} 20. f4 {[%emt 0:00:12]} Bxd4+ {[%emt 0:00:29]} 21. Qxd4 {[%emt 0:00:02]} Rad8 {[%emt 0:00:04]} 22. cxb5 {[%emt 0:00:06]} axb5 {[%emt 0:00:02]} 23. a3 {[%emt 0:00:00][%cal Oc3d5]} Nf6 {[%emt 0:00:04][%cal Bh5f6,Bf6g4,Bg4f2][%mdl 32]} 24. Rd2 {[%emt 0:00:15]} Bb3 {[%emt 0:00:06]} 25. Qf2 {[%emt 0:00:07]} d5 {[%emt 0:00:02]} 26. e5 {[%emt 0:00:03]} d4 {[%emt 0:00:03] Strongly threatening ...Ng4.} 27. Rxd4 $2 {[%emt 0:00:17][%mdl 8192] [#]} (27. Nd1 $11) 27... Ng4 $1 $19 {[%emt 0:00:02]} 28. Qd2 {[%emt 0:00:00]} Qc5 {[%emt 0:00:03]} (28... Qa7 $19 {has better winning chances.} 29. Ne2 (29. Ree4 $2 f5 $19) 29... Bc4) 29. Ne2 $17 {[%emt 0:00:02]} ({Don't blunder} 29. Ree4 $2 {[#]} Bc2 $1 {[%mdl 512]} 30. Qxc2 (30. b4 $2 Qa7 $19) 30... Rxd4 31. Rxd4 Qxd4+ 32. Kh1 Rd8 $19) 29... Bc4 {[%emt 0:00:25] Hoping for ...Bxe2.} 30. Kh1 $2 {[%emt 0:00:03][%mdl 8192]} (30. Rc1 $17 f6 31. b3 fxe5 32. fxe5 Rxe5 33. bxc4 Rxe2 34. Qxe2 Qxd4+ 35. Kh1) 30... Bxe2 $2 {[%emt 0:00:10]} 31. Rxd8 $11 {[%emt 0:00:01] The position is equal.} Bf3+ {[%emt 0:00:02]} 32. Bg2 {[%emt 0:00:03]} Nf2+ {[%emt 0:00:06]} 33. Kg1 {[%emt 0:00:10]} Nh3+ {[%emt 0:00:08][%mdl 64] Discovered Attack (Double check)} 34. Kh1 $1 {[%emt 0:00:04]} Nf2+ {[%emt 0:00:02]} 35. Kg1 {[%emt 0:00:27] Weighted Error Value: White=0.43/Black=0.21 (precise)} 1/2-1/2

[Event "10th Norway Chess Blitz 2022"]
[Site "Stavanger"]
[Date "2022.05.30"]
[Round "3.2"]
[White "Wang, Hao"]
[Black "Radjabov, Teimour"]
[Result "1-0"]
[ECO "E36"]
[WhiteElo "2744"]
[BlackElo "2753"]
[Annotator "TA"]
[PlyCount "89"]
[EventDate "2022.05.30"]
[EventType "tourn"]
[EventCountry "NOR"]
[SourceTitle "playchess.com"]
[Source "ChessBase"]
[SourceQuality "1"]
[TimeControl "180+2"]

{[%evp 10,89,50,52,55,75,88,36,74,23,66,69,79,64,82,71,58,34,47,48,40,55,71,64,100,103,93,92,93,54,78,52,60,64,66,58,59,64,54,56,58,55,200,181,178,185,197,174,156,130,287,269,294,293,350,342,442,430,540,406,380,305,482,370,705,691,1108,1049,1250,1264,1264,1237,1172,1151,1310,1304,1254,1246,1177,1159,1139,1027]} 1. d4 {[%emt 0:00:02]} Nf6 {[%emt 0:00:01]} 2. c4 {[%emt 0:00:01]} e6 {[%emt 0:00:02]} 3. Nc3 {[%emt 0:00:02]} Bb4 {[%emt 0:00:06]} 4. Qc2 {[%emt 0:00:01]} d5 {[%emt 0:00:03]} 5. a3 {[%emt 0:00:06]} Be7 {[%emt 0:00:01]} 6. Nf3 {[%emt 0:00:04]} c5 {[%emt 0:00:04] E36: Nimzo-Indian: Classical: 4...d5 5 a3.} 7. dxc5 {[%emt 0:00:41]} Bxc5 {[%emt 0:00:26]} 8. b4 {[%emt 0:00:13]} (8. cxd5 $16 {Black must now prevent Bg5.} exd5 9. Bg5) 8... Bd6 {[%emt 0:00:08] White is slightly better.} 9. e3 {[%emt 0:00:04]} (9. e4 $16 {Strongly threatening e5.} Nbd7 10. exd5 (10. cxd5 exd5 11. Bg5 Qc7 $14)) 9... Nc6 {[%emt 0:00:07] [#]} 10. Bb2 $146 {[%emt 0:00:03]} ({Predecessor:} 10. Nb5 a6 11. Nxd6+ Qxd6 12. Bb2 dxc4 13. Rd1 Qe7 14. Bxc4 e5 15. h3 O-O 16. O-O {½-½ (61) Hoibraaten,T-Keijzer,R (1981) ICCF email 2007}) 10... Qe7 {[%emt 0:00:08]} 11. Be2 {[%emt 0:00:08]} O-O {[%emt 0:00:07]} 12. O-O {[%emt 0:00:04]} (12. Ng5 {with more complications.} Ne5 13. cxd5 h6 14. Nge4) 12... dxc4 {[%emt 0:00:10]} 13. Bxc4 {[%emt 0:00:06]} Ne5 {[%emt 0:00:07]} 14. Nxe5 {[%emt 0:00:15]} Bxe5 {[%emt 0:00:01]} 15. f4 {[%emt 0:00:01]} Bc7 {[%emt 0:00:06]} 16. Ne4 {[%emt 0:00:05][%cal Bc3e4,Be4g5,Bg5f3,Bf3d4][%mdl 32]} Nd5 {[%emt 0:00:12]} 17. Ng5 {[%emt 0:00:14][%csl Gg5][%cal Rc2h7] [#]} f5 {[%emt 0:00:10]} 18. Bxd5 {[%emt 0:00:12]} exd5 {[%emt 0:00:01]} 19. Bd4 {[%emt 0:00:01]} Re8 {[%emt 0:00:15]} 20. Rfe1 {[%emt 0:00:13]} Bd6 {[%emt 0:00:12]} 21. Rac1 $36 {[%emt 0:00:20][%mdl 2048] Black is under pressure.} h6 {[%emt 0:00:26]} 22. Nf3 {[%emt 0:00:02] 0x0.000a5ab72d5edp-1022s more active pieces.} a5 {[%emt 0:00:00]} 23. Bc5 {[%emt 0:00:07]} axb4 {[%emt 0:00:01]} 24. axb4 {[%emt 0:00:02]} Be6 {[%emt 0:00:33]} 25. Nd4 {[%emt 0:00:07]} b6 {[%emt 0:00:01]} (25... Bxc5 $14 26. bxc5 (26. Qxc5 Ra3 $14) 26... Rac8) 26. Bxd6 $18 {[%emt 0:00:13]} (26. Nxf5 $2 Bxf5 27. Bxd6 Qe6 $19) ({Resist} 26. Bxb6 $6 Bxb4 27. Bc5 Bxc5 28. Qxc5 Ra6 $14) 26... Qxd6 {[%emt 0:00:01]} 27. Qc6 {[%emt 0:00:05]} Rad8 {[%emt 0:00:17]} 28. Qxd6 {[%emt 0:00:03]} Rxd6 {[%emt 0:00:01]} 29. Kf2 {[%emt 0:00:05]} Rd7 $2 {[%emt 0:00:08] Black cannot hold the game after this.} (29... Rc8 $16 {was called for.} 30. Rxc8+ Bxc8) 30. Rc6 {[%emt 0:00:02][%csl LRb6,LRe6]} Bf7 {[%emt 0:00:00]} 31. Rxb6 {[%emt 0:00:02]} Ra7 {[%emt 0:00:00]} 32. b5 {[%emt 0:00:06][%cal Bb4b5,Bb5b6][%mdl 32]} ({Much less strong is} 32. Nxf5 Bh5 33. b5 Ra2+ 34. Kg3 Be2 $18) 32... Bh5 {[%emt 0:00:04]} 33. Ra6 {[%emt 0:00:02] Prevents Ra2+.} Rc7 {[%emt 0:00:01]} 34. Rc6 {[%emt 0:00:02]} Ra7 {[%emt 0:00:00]} 35. Rc2 {[%emt 0:00:03] Prevents Ra2.} g5 {[%emt 0:00:06]} (35... Rb8 {is a better defense.} 36. Rb1 Rb6) 36. g3 {[%emt 0:00:04]} Kh7 $2 {[%emt 0:00:01]} (36... Rb8 37. Rec1 gxf4 38. gxf4 Be8) 37. b6 {[%emt 0:00:03] White is clearly winning.} Ra6 {[%emt 0:00:02]} 38. Rb1 {[%emt 0:00:03]} Rb8 {[%emt 0:00:01]} 39. Rc7+ {[%emt 0:00:03]} Kg6 {[%emt 0:00:01]} 40. Rc6+ {[%emt 0:00:01]} Kh7 {[%emt 0:00:01]} 41. Rb2 {[%emt 0:00:02]} Be8 {[%emt 0:00:03]} 42. Rc7+ {[%emt 0:00:02]} Kg6 43. b7 {[%emt 0:00:01]} gxf4 {[%emt 0:00:05]} 44. gxf4 {[%emt 0:00:02] [#] Threatening mate with Rc8.} Kh5 {[%emt 0:00:01]} 45. Rc8 {[%emt 0:00:02] Weighted Error Value: White=0.18 (very precise) /Black=0.43} 1-0